fUSD/lending_fUSD_20251122
["ID","MTS","AMOUNT","RATE_DAILY","PERIOD"]
[394631751,1763796650604,-500.0,0.00016438,2]
[394631752,1763796650616,-858.65,0.00016438,2]
[394631753,1763796650897,-709.19,0.00016438,2]
[394631754,1763796650908,-500.0,0.00016438,2]
[394631755,1763796650918,-500.0,0.00016438,2]
[394631756,1763796650927,-2575.36,0.00016438,2]
[394631757,1763796650936,-500.0,0.00016438,2]
[394631758,1763796650946,-500.0,0.00016438,2]
[394631759,1763796650955,-500.0,0.00016438,2]
[394631760,1763796650964,-500.0,0.00016438,2]
[394631761,1763796650974,-500.0,0.00016438,2]
[394631762,1763796650983,-503.58,0.00016438,2]
[394631763,1763796650993,-500.0,0.00016438,2]
[394631764,1763796651003,-500.0,0.00016438,2]
[394631765,1763796651013,-500.0,0.00016438,2]
[394631766,1763796651022,-500.0,0.00016438,2]
[394631767,1763796651031,-500.0,0.00016438,2]
[394631768,1763796651040,-407.39891198,0.00016438,2]
[394631769,1763796651049,-500.0,0.00016438,2]
[394631770,1763796651059,-500.0,0.00016438,2]
[394631771,1763796651068,-500.0,0.00016438,2]
[394631772,1763796651078,-821.5,0.00016438,2]
[394631773,1763796651087,-500.0,0.00016438,2]
[394631774,1763796651096,-500.0,0.00016438,2]
[394631775,1763796651105,-500.0,0.00016438,2]
[394631776,1763796651115,-801.1,0.00016438,2]
[394631777,1763796651124,-500.0,0.00016438,2]
[394631778,1763796651133,-154.06177399,0.00016438,2]
[394631779,1763796651143,-500.0,0.00016438,2]
[394631780,1763796651154,-500.0,0.00016438,2]
[394631781,1763796651164,-500.0,0.00016438,2]
[394631782,1763796651175,-500.0,0.00016438,2]
[394631783,1763796651184,-500.0,0.00016438,2]
[394631784,1763796651194,-500.0,0.00016438,2]
[394631785,1763796651204,-500.0,0.00016438,2]
[394631786,1763796651215,-500.0,0.00016438,2]
[394631787,1763796651226,-163.00391499,0.00016438,2]
[394631788,1763796651235,-751.12,0.00016438,2]
[394631789,1763796651244,-500.0,0.00016438,2]
[394631790,1763796651254,-540.99,0.00016438,2]
[394631791,1763796651263,-500.0,0.00016438,2]
[394631792,1763796651272,-1175.42,0.00016438,2]
[394631793,1763796651281,-664.81,0.00016438,2]
[394631794,1763796651290,-500.0,0.00016438,2]
[394631795,1763796651299,-429.03815306,0.00016438,2]
[394631796,1763796651308,-2454.69,0.00016438,2]
[394631797,1763796651317,-600.0,0.00016438,2]
[394631798,1763796651326,-600.0,0.00016438,2]
[394631799,1763796651336,-500.0,0.00016444,2]
[394631800,1763796651346,-500.0,0.00016444,2]
[394631801,1763796651355,-15147.73015277,0.00016458,2]
[394631802,1763796651364,-491.23630963,0.00016473,2]
[394631803,1763796651373,-500.0,0.00016473,2]
[394631804,1763796651382,-316.74089691,0.00016473,2]
[394631805,1763796651391,-500.0,0.00016473,2]
[394631806,1763796651400,-500.46143433,0.00016473,2]
[394631807,1763796651409,-500.0,0.00016473,2]
[394631808,1763796651419,-501.61269069,0.00016473,2]
[394631809,1763796651428,-500.0,0.00016473,2]
[394631810,1763796651437,-500.0,0.00016473,2]
[394631811,1763796651446,-502.3597061,0.00016473,2]
[394631812,1763796651455,-501.16645405,0.00016473,2]
[394631813,1763796651464,-500.4832705,0.00016473,2]
[394631814,1763796651477,-500.0,0.00016473,2]
[394631815,1763796651486,-501.77717747,0.00016473,2]
[394631816,1763796651495,-500.0,0.00016473,2]
[394631817,1763796651504,-480.9806907,0.00016473,2]
[394631818,1763796651515,-500.0,0.00016473,2]
[394631819,1763796651525,-502.79897585,0.00016473,2]
[394631820,1763796651535,-505.48990269,0.00016473,2]
[394631821,1763796651545,-500.0,0.00016473,2]
[394631822,1763796651554,-500.0,0.00016473,2]
[394631823,1763796651564,-343.20701496,0.00016473,2]
[394631824,1763796651573,-500.26556157,0.00016473,2]
[394631825,1763796651582,-160.90244263,0.00016473,2]
[394631826,1763796651591,-150.0,0.00016481,2]
[394631827,1763796651601,-500.0,0.00016493,5]
[394631828,1763796651610,-195.0,0.00016517,2]
[394631829,1763796651619,-1378.06148842,0.00016517,3]
[394631830,1763796651628,-250.0,0.00016517,2]
[394631831,1763796651638,-300.0,0.00016517,2]
[394631832,1763796651647,-300.0,0.00016517,2]
[394631833,1763796651656,-300.0,0.00016517,2]
[394631834,1763796651666,-300.0,0.00016517,2]
[394631835,1763796651675,-300.0,0.00016517,2]
[394631836,1763796651685,-300.0,0.00016517,2]
[394631837,1763796651694,-193.52707338,0.00016517,2]
[394631838,1763796651703,-250.0,0.00016517,2]
[394631839,1763796651713,-200.0,0.00016518,2]
[394631840,1763796651722,-200.0,0.00016518,2]
[394631841,1763796651731,-200.0,0.00016518,2]
[394631842,1763796651740,-200.0,0.00016518,2]
[394631843,1763796651750,-261.51404538,0.00016518,2]
[394631844,1763796651762,-150.0,0.00016519,2]
[394631845,1763796651772,-1678.18037606,0.00016538,2]
[394631846,1763796651781,-150.0,0.00016567,2]
[394631847,1763796651790,-422.94459855,0.0001657,2]
[394631848,1763796651800,-500.0,0.00016594,6]
[394631849,1763796651809,-171.145,0.00016596,2]
[394631850,1763796651818,-655.546,0.00016596,2]
[394631851,1763796651827,-150.0,0.00016596,2]
[394631852,1763796651837,-150.0,0.00016596,2]
[394631853,1763796651846,-150.0,0.00016596,2]
[394631854,1763796651855,-150.0,0.00016596,2]
[394631855,1763796651864,-1795.73636679,0.00016598,2]
[394631856,1763796651873,-15147.73015277,0.00016605,2]
[394631857,1763796651883,-150.0,0.00016639,2]
[394631858,1763796651892,-510.0,0.00016693,2]
[394631859,1763796651903,-1711.30306844,0.00016702,2]
[394631860,1763796651912,-150.0,0.00016711,2]
[394631861,1763796651923,-150.0,0.00016711,2]
[394631862,1763796651932,-150.0,0.00016711,2]
[394631863,1763796651942,-150.0,0.00016711,2]
[394631864,1763796651951,-150.0,0.00016711,2]
[394631865,1763796651960,-150.0,0.00016711,2]
[394631866,1763796651969,-500.0,0.00016712,2]
[394631867,1763796651979,-500.0,0.00016712,2]
[394631868,1763796651988,-491.94522794,0.00016712,2]
[394631869,1763796651997,-500.0,0.00016712,2]
[394631870,1763796652006,-500.0,0.00016712,2]
[394631871,1763796652015,-500.0,0.00016712,2]
[394631872,1763796652024,-500.0,0.00016712,2]
[394631873,1763796652033,-500.0,0.00016712,2]
[394631874,1763796652042,-500.0,0.00016712,2]
[394631875,1763796652052,-500.0,0.00016712,2]
[394631876,1763796652061,-362.14502396,0.00016712,2]
[394631877,1763796652070,-500.0,0.00016712,2]
[394631878,1763796652080,-500.0,0.00016712,2]
[394631879,1763796652088,-500.0,0.00016712,2]
[394631880,1763796652098,-500.0,0.00016712,2]
[394631881,1763796652107,-500.0,0.00016712,2]
[394631882,1763796652116,-500.0,0.00016712,2]
[394631883,1763796652126,-810.42,0.00016712,2]
[394631884,1763796652135,-500.0,0.00016712,2]
[394631885,1763796652143,-500.0,0.00016712,2]
[394631886,1763796652152,-500.0,0.00016712,2]
[394631887,1763796652162,-500.0,0.00016712,2]
[394631888,1763796652171,-500.0,0.00016712,2]
[394631889,1763796652180,-964.44,0.00016712,2]
[394631890,1763796652190,-500.0,0.00016712,2]
[394631891,1763796652199,-500.0,0.00016712,2]
[394631892,1763796652208,-500.0,0.00016712,2]
[394631893,1763796652217,-500.0,0.00016712,2]
[394631894,1763796652227,-500.0,0.00016712,2]
[394631895,1763796652237,-337.20741779,0.00016712,2]
[394631896,1763796652246,-500.0,0.00016712,2]
[394631897,1763796652255,-500.0,0.00016712,2]
[394631898,1763796652264,-500.0,0.00016712,2]
[394631899,1763796652273,-376.89733736,0.00016712,2]
[394631900,1763796652283,-629.53,0.00016712,2]
[394631901,1763796652292,-500.0,0.00016712,2]
[394631902,1763796652302,-500.0,0.00016712,2]
[394631903,1763796652311,-638.14,0.00016712,2]
[394631904,1763796652320,-500.0,0.00016712,2]
[394631905,1763796652330,-500.0,0.00016712,2]
[394631906,1763796652338,-500.0,0.00016712,2]
[394631907,1763796652347,-500.0,0.00016712,2]
[394631908,1763796652357,-500.0,0.00016712,2]
[394631909,1763796652367,-500.0,0.00016712,2]
[394631910,1763796652376,-794.89,0.00016712,2]
[394631911,1763796652385,-1110.91,0.00016712,2]
[394631912,1763796652396,-500.0,0.00016712,2]
[394631913,1763796652407,-500.0,0.00016712,2]
[394631914,1763796652416,-678.33,0.00016712,2]
[394631915,1763796652427,-500.0,0.00016712,2]
[394631916,1763796652437,-500.0,0.00016712,2]
[394631917,1763796652447,-500.0,0.00016712,2]
[394631918,1763796652457,-500.0,0.00016712,2]
[394631919,1763796652467,-500.0,0.00016712,2]
[394631920,1763796652488,-852.96,0.00016712,2]
[394631921,1763796652507,-500.0,0.00016712,2]
[394631922,1763796652526,-1413.37,0.00016712,2]
[394631923,1763796652538,-1196.14,0.00016712,2]
[394631924,1763796652547,-725.27,0.00016712,2]
[394631925,1763796652557,-519.4426018,0.00016712,2]
[394631926,1763796652567,-500.0,0.00016712,2]
[394631927,1763796652577,-500.0,0.00016712,2]
[394631928,1763796652586,-896.26,0.00016712,2]
[394631929,1763796652596,-500.0,0.00016712,2]
[394631930,1763796652605,-410.45108455,0.00016712,2]
[394631931,1763796652615,-359.3223753,0.00016712,2]
[394631932,1763796652624,-500.0,0.00016712,2]
[394631933,1763796652634,-500.0,0.00016712,2]
[394631934,1763796652643,-500.0,0.00016712,2]
[394631935,1763796652653,-689.89,0.00016712,2]
[394631936,1763796652662,-500.0,0.00016712,2]
[394631937,1763796652671,-500.0,0.00016712,2]
[394631938,1763796652681,-500.0,0.00016712,2]
[394631939,1763796652691,-500.0,0.00016712,2]
[394631940,1763796652700,-500.0,0.00016712,2]
[394631941,1763796652709,-307.30493538,0.00016712,2]
[394631942,1763796652719,-500.0,0.00016712,2]
[394631943,1763796652729,-500.0,0.00016712,2]
[394631944,1763796652739,-500.0,0.00016712,2]
[394631945,1763796652748,-500.0,0.00016712,2]
[394631946,1763796652758,-500.0,0.00016712,2]
[394631947,1763796652767,-500.0,0.00016712,2]
[394631948,1763796652777,-985.45,0.00016712,2]
[394631949,1763796652787,-644.04,0.00016712,2]
[394631950,1763796652796,-500.0,0.00016712,2]
[394631951,1763796652806,-522.45,0.00016712,2]
[394631952,1763796652816,-653.95,0.00016712,2]
[394631953,1763796652826,-608.18123498,0.00016712,2]
[394631954,1763796652836,-500.0,0.00016712,2]
[394631955,1763796652845,-931.27,0.00016712,2]
[394631956,1763796652855,-500.0,0.00016712,2]
[394631957,1763796652865,-785.57,0.00016712,2]
[394631958,1763796652874,-500.0,0.00016712,2]
[394631959,1763796652883,-500.0,0.00016712,2]
[394631960,1763796652893,-549.74,0.00016712,2]
[394631961,1763796652904,-500.0,0.00016712,2]
[394631962,1763796652914,-500.0,0.00016712,2]
[394631963,1763796652924,-526.38,0.00016712,2]
[394631964,1763796652934,-864.39,0.00016712,2]
[394631965,1763796652944,-718.05,0.00016712,2]
[394631966,1763796652953,-500.0,0.00016712,2]
[394631967,1763796652962,-500.0,0.00016712,2]
[394631968,1763796652973,-500.0,0.00016712,2]
[394631969,1763796652983,-828.05,0.00016712,2]
[394631970,1763796652992,-500.0,0.00016712,2]
[394631971,1763796653002,-500.0,0.00016712,2]
[394631972,1763796653012,-500.0,0.00016712,2]
[394631973,1763796653021,-637.36,0.00016712,2]
[394631974,1763796653030,-500.0,0.00016712,2]
[394631975,1763796653039,-1536.52,0.00016712,2]
[394631976,1763796653049,-528.56,0.00016712,2]
[394631977,1763796653058,-726.93,0.00016712,2]
[394631978,1763796653067,-623.05,0.00016712,2]
[394631979,1763796653077,-500.0,0.00016712,2]
[394631980,1763796653086,-500.0,0.00016712,2]
[394631981,1763796653095,-500.0,0.00016712,2]
[394631982,1763796653113,-895.25,0.00016712,2]
[394631983,1763796653134,-766.35,0.00016712,2]
[394631984,1763796653146,-622.45,0.00016712,2]
[394631985,1763796653155,-723.23,0.00016712,2]
[394631986,1763796653164,-1084.02,0.00016712,2]
[394631987,1763796653174,-812.04,0.00016712,2]
[394631988,1763796653183,-500.0,0.00016712,2]
[394631989,1763796653270,-500.0,0.00016712,2]
[394631990,1763796653280,-617.03,0.00016712,2]
[394631991,1763796653289,-935.74,0.00016712,2]
[394631992,1763796653299,-500.0,0.00016712,2]
[394631993,1763796653308,-500.0,0.00016712,2]
[394631994,1763796653318,-638.76,0.00016712,2]
[394631995,1763796653327,-796.12,0.00016712,2]
[394631996,1763796653336,-500.0,0.00016712,2]
[394631997,1763796653346,-500.0,0.00016712,2]
[394631998,1763796653355,-609.19,0.00016712,2]
[394631999,1763796653364,-500.0,0.00016712,2]
[394632000,1763796653375,-1236.5,0.00016712,2]
[394632001,1763796653384,-1841.35,0.00016712,2]
[394632002,1763796653394,-500.0,0.00016712,2]
[394632003,1763796653403,-500.0,0.00016712,2]
[394632004,1763796653412,-596.39,0.00016712,2]
[394632005,1763796653422,-421.87841168,0.00016712,2]
[394632006,1763796653431,-500.0,0.00016712,2]
[394632007,1763796653441,-500.0,0.00016712,2]
[394632008,1763796653450,-500.0,0.00016712,2]
[394632009,1763796653459,-500.0,0.00016712,2]
[394632010,1763796653469,-683.36,0.00016712,2]
[394632011,1763796653483,-521.07,0.00016712,2]
[394632012,1763796653492,-751.71,0.00016712,2]
[394632013,1763796653502,-500.0,0.00016712,2]
[394632014,1763796653511,-500.0,0.00016712,2]
[394632015,1763796653523,-500.0,0.00016712,2]
[394632016,1763796653533,-500.0,0.00016712,2]
[394632017,1763796653542,-500.0,0.00016712,2]
[394632018,1763796653551,-500.0,0.00016712,2]
[394632019,1763796653561,-500.0,0.00016712,2]
[394632020,1763796653570,-500.0,0.00016712,2]
[394632021,1763796653580,-500.0,0.00016712,2]
[394632022,1763796653589,-500.0,0.00016712,2]
[394632023,1763796653598,-500.0,0.00016712,2]
[394632024,1763796653607,-571.19,0.00016712,2]
[394632025,1763796653616,-533.78301805,0.00016712,2]
[394632026,1763796653626,-500.0,0.00016712,2]
[394632027,1763796653636,-500.0,0.00016712,2]
[394632028,1763796653645,-500.0,0.00016712,2]
[394632029,1763796653654,-500.0,0.00016712,2]
[394632030,1763796653664,-1104.33,0.00016712,2]
[394632031,1763796653673,-517.32601492,0.00016712,2]
[394632032,1763796653682,-726.99,0.00016712,2]
[394632033,1763796653691,-1166.8,0.00016712,2]
[394632034,1763796653700,-519.54466988,0.00016712,2]
[394632035,1763796653709,-1107.36,0.00016712,2]
[394632036,1763796653719,-658.18,0.00016712,2]
[394632037,1763796653729,-500.0,0.00016712,2]
[394632038,1763796653738,-538.73966035,0.00016712,2]
[394632039,1763796653747,-500.0,0.00016712,2]
[394632040,1763796653756,-500.0,0.00016712,2]
[394632041,1763796653766,-500.0,0.00016712,2]
[394632042,1763796653775,-556.46,0.00016712,2]
[394632043,1763796653784,-500.0,0.00016712,2]
[394632044,1763796653793,-500.0,0.00016712,2]
[394632045,1763796653802,-533.99,0.00016712,2]
[394632046,1763796653811,-774.34,0.00016712,2]
[394632047,1763796653820,-500.0,0.00016712,2]
[394632048,1763796653830,-500.0,0.00016712,2]
[394632049,1763796653839,-500.0,0.00016712,2]
[394632050,1763796653848,-537.71,0.00016712,2]
[394632051,1763796653858,-689.57,0.00016712,2]
[394632052,1763796653867,-545.99,0.00016712,2]
[394632053,1763796653876,-500.0,0.00016712,2]
[394632054,1763796653886,-500.0,0.00016712,2]
[394632055,1763796653894,-500.0,0.00016712,2]
[394632056,1763796653903,-849.05,0.00016712,2]
[394632057,1763796653912,-829.46,0.00016712,2]
[394632058,1763796653921,-747.29,0.00016712,2]
[394632059,1763796653931,-500.05,0.00016712,2]
[394632060,1763796653940,-859.94,0.00016712,2]
[394632061,1763796653948,-311.85180012,0.00016712,2]
[394632062,1763796653957,-500.0,0.00016712,2]
[394632063,1763796653966,-500.0,0.00016712,2]
[394632064,1763796653975,-1155.96,0.00016712,2]
[394632065,1763796653984,-500.0,0.00016712,2]
[394632066,1763796653993,-500.0,0.00016712,2]
[394632067,1763796654002,-685.16,0.00016712,2]
[394632068,1763796654011,-252.56323315,0.00016712,2]
[394632069,1763796654020,-500.0,0.00016712,2]
[394632070,1763796654029,-500.0,0.00016712,2]
[394632071,1763796654039,-506.3248259,0.00016712,2]
[394632072,1763796654048,-1915.48,0.00016712,2]
[394632073,1763796654057,-895.49,0.00016712,2]
[394632074,1763796654066,-500.0,0.00016712,2]
[394632075,1763796654075,-500.0,0.00016712,2]
[394632076,1763796654085,-500.0,0.00016712,2]
[394632077,1763796654093,-500.0,0.00016712,2]
[394632078,1763796654103,-500.7431203,0.00016712,2]
[394632079,1763796654112,-888.82,0.00016712,2]
[394632080,1763796654120,-500.0,0.00016712,2]
[394632081,1763796654129,-500.0,0.00016712,2]
[394632082,1763796654138,-514.57727994,0.00016712,2]
[394632083,1763796654147,-925.18,0.00016712,2]
[394632084,1763796654157,-1533.59,0.00016712,2]
[394632085,1763796654166,-500.0,0.00016712,2]
[394632086,1763796654176,-500.0,0.00016712,2]
[394632087,1763796654185,-500.0,0.00016712,2]
[394632088,1763796654193,-598.82,0.00016712,2]
[394632089,1763796654202,-778.87,0.00016712,2]
[394632090,1763796654211,-500.0,0.00016712,2]
[394632091,1763796654221,-1164.05,0.00016712,2]
[394632092,1763796654231,-500.0,0.00016712,2]
[394632093,1763796654240,-500.0,0.00016712,2]
[394632094,1763796654249,-500.0,0.00016712,2]
[394632095,1763796654259,-500.0,0.00016712,2]
[394632096,1763796654268,-500.0,0.00016712,2]
[394632097,1763796654277,-983.24,0.00016712,2]
[394632098,1763796654287,-910.99,0.00016712,2]
[394632099,1763796654296,-694.87,0.00016712,2]
[394632100,1763796654305,-500.0,0.00016712,2]
[394632101,1763796654314,-500.0,0.00016712,2]
[394632102,1763796654324,-608.04698498,0.00016712,2]
[394632103,1763796654333,-500.0,0.00016712,2]
[394632104,1763796654343,-500.0,0.00016712,2]
[394632105,1763796654352,-237.11706112,0.00016712,2]
[394632106,1763796654362,-500.0,0.00016712,2]
[394632107,1763796654371,-536.67,0.00016712,2]
[394632108,1763796654380,-500.0,0.00016712,2]
[394632109,1763796654389,-500.0,0.00016712,2]
[394632110,1763796654399,-500.0,0.00016712,2]
[394632111,1763796654408,-500.0,0.00016712,2]
[394632112,1763796654417,-272.99493125,0.00016712,2]
[394632113,1763796654426,-500.0,0.00016712,2]
[394632114,1763796654435,-500.0,0.00016712,2]
[394632115,1763796654444,-882.7,0.00016712,2]
[394632116,1763796654454,-912.5,0.00016712,2]
[394632117,1763796654463,-500.0,0.00016712,2]
[394632118,1763796654473,-936.92,0.00016712,2]
[394632119,1763796654487,-972.88,0.00016712,2]
[394632120,1763796654496,-500.0,0.00016712,2]
[394632121,1763796654506,-506.35895688,0.00016712,2]
[394632122,1763796654516,-500.0,0.00016712,2]
[394632123,1763796654525,-608.82,0.00016712,2]
[394632124,1763796654534,-500.0,0.00016712,2]
[394632125,1763796654543,-500.0,0.00016712,2]
[394632126,1763796654553,-500.0,0.00016712,2]
[394632127,1763796654562,-500.0,0.00016712,2]
[394632128,1763796654571,-657.92,0.00016712,2]
[394632129,1763796654580,-500.0,0.00016712,2]
[394632130,1763796654590,-791.83,0.00016712,2]
[394632131,1763796654600,-808.76,0.00016712,2]
[394632132,1763796654609,-500.0,0.00016712,2]
[394632133,1763796654618,-157.15489233,0.00016712,2]
[394632134,1763796654627,-500.0,0.00016712,2]
[394632135,1763796654637,-315.13269416,0.00016712,2]
[394632136,1763796654646,-619.75492399,0.00016712,2]
[394632137,1763796654654,-886.29,0.00016712,2]
[394632138,1763796654665,-500.0,0.00016712,2]
[394632139,1763796654675,-500.0,0.00016712,2]
[394632140,1763796654684,-640.9,0.00016712,2]
[394632141,1763796654693,-500.0,0.00016712,2]
[394632142,1763796654702,-340.45652725,0.00016712,2]
[394632143,1763796654712,-1011.02,0.00016712,2]
[394632144,1763796654729,-500.0,0.00016712,2]
[394632145,1763796654738,-935.99,0.00016712,2]
[394632146,1763796654747,-500.0,0.00016712,2]
[394632147,1763796654757,-1147.71,0.00016712,2]
[394632148,1763796654766,-500.0,0.00016712,2]
[394632149,1763796654775,-636.32,0.00016712,2]
[394632150,1763796654785,-500.0,0.00016712,2]
[394632151,1763796654794,-500.0,0.00016712,2]
[394632152,1763796654803,-639.95,0.00016712,2]
[394632153,1763796654811,-872.31,0.00016712,2]
[394632154,1763796654821,-500.0,0.00016712,2]
[394632155,1763796654830,-500.0,0.00016712,2]
[394632156,1763796654839,-500.0,0.00016712,2]
[394632157,1763796654851,-500.0,0.00016712,2]
[394632158,1763796654860,-500.0,0.00016712,2]
[394632159,1763796654870,-845.8,0.00016712,2]
[394632160,1763796654879,-692.14,0.00016712,2]
[394632161,1763796654889,-500.0,0.00016712,2]
[394632162,1763796654900,-500.0,0.00016712,2]
[394632163,1763796654911,-656.46,0.00016712,2]
[394632164,1763796654919,-500.0,0.00016712,2]
[394632165,1763796654929,-218.32882181,0.00016712,2]
[394632166,1763796654939,-549.89692716,0.00016712,2]
[394632167,1763796654948,-500.0,0.00016712,2]
[394632168,1763796654959,-500.0,0.00016712,2]
[394632169,1763796654968,-931.63,0.00016712,2]
[394632170,1763796654979,-500.0,0.00016712,2]
[394632171,1763796654988,-542.46,0.00016712,2]
[394632172,1763796654997,-835.61,0.00016712,2]
[394632173,1763796655006,-651.02,0.00016712,2]
[394632174,1763796655014,-500.0,0.00016712,2]
[394632175,1763796655024,-500.0,0.00016712,2]
[394632176,1763796655034,-549.68,0.00016712,2]
[394632177,1763796655044,-500.0,0.00016712,2]
[394632178,1763796655054,-500.0,0.00016712,2]
[394632179,1763796655064,-500.0,0.00016712,2]
[394632180,1763796655073,-316.29023139,0.00016712,2]
[394632181,1763796655082,-500.0,0.00016712,2]
[394632182,1763796655092,-500.0,0.00016712,2]
[394632183,1763796655101,-873.25,0.00016712,2]
[394632184,1763796655111,-589.41,0.00016712,2]
[394632185,1763796655120,-500.0,0.00016712,2]
[394632186,1763796655129,-500.0,0.00016712,2]
[394632187,1763796655139,-594.95,0.00016712,2]
[394632188,1763796655150,-500.0,0.00016712,2]
[394632189,1763796655160,-505.88566589,0.00016712,2]
[394632190,1763796655169,-500.0,0.00016712,2]
[394632191,1763796655177,-500.0,0.00016712,2]
[394632192,1763796655186,-617.94,0.00016712,2]
[394632193,1763796655195,-500.0,0.00016712,2]
[394632194,1763796655205,-1413.57,0.00016712,2]
[394632195,1763796655213,-604.79828723,0.00016712,2]
[394632196,1763796655222,-500.0,0.00016712,2]
[394632197,1763796655233,-1156.53,0.00016712,2]
[394632198,1763796655241,-500.0,0.00016712,2]
[394632199,1763796655249,-1448.58,0.00016712,2]
[394632200,1763796655257,-500.0,0.00016712,2]
[394632201,1763796655267,-604.87,0.00016712,2]
[394632202,1763796655276,-1003.3,0.00016712,2]
[394632203,1763796655285,-500.0,0.00016712,2]
[394632204,1763796655294,-229.27365468,0.00016712,2]
[394632205,1763796655303,-500.0,0.00016712,2]
[394632206,1763796655312,-500.0,0.00016712,2]
[394632207,1763796655322,-1122.11,0.00016712,2]
[394632208,1763796655332,-549.59,0.00016712,2]
[394632209,1763796655342,-500.0,0.00016712,2]
[394632210,1763796655351,-500.0,0.00016712,2]
[394632211,1763796655361,-500.0,0.00016712,2]
[394632212,1763796655370,-500.0,0.00016712,2]
[394632213,1763796655379,-505.03344124,0.00016712,2]
[394632214,1763796655388,-951.48,0.00016712,2]
[394632215,1763796655398,-530.49,0.00016712,2]
[394632216,1763796655406,-880.92,0.00016712,2]
[394632217,1763796655416,-500.0,0.00016712,2]
[394632218,1763796655425,-500.0,0.00016712,2]
[394632219,1763796655435,-500.0,0.00016712,2]
[394632220,1763796655444,-500.0,0.00016712,2]
[394632221,1763796655453,-500.0,0.00016712,2]
[394632222,1763796655463,-500.0,0.00016712,2]
[394632223,1763796655479,-1039.53,0.00016712,2]
[394632224,1763796655488,-906.91,0.00016712,2]
[394632225,1763796655498,-500.0,0.00016712,2]
[394632226,1763796655507,-886.33,0.00016712,2]
[394632227,1763796655518,-1164.7,0.00016712,2]
[394632228,1763796655528,-500.0,0.00016712,2]
[394632229,1763796655537,-500.0,0.00016712,2]
[394632230,1763796655546,-599.72,0.00016712,2]
[394632231,1763796655557,-500.0,0.00016712,2]
[394632232,1763796655567,-500.0,0.00016712,2]
[394632233,1763796655576,-763.04,0.00016712,2]
[394632234,1763796655586,-500.0,0.00016712,2]
[394632235,1763796655595,-417.21834323,0.00016712,2]
[394632236,1763796655604,-500.0,0.00016712,2]
[394632237,1763796655614,-500.0,0.00016712,2]
[394632238,1763796655624,-1242.88,0.00016712,2]
[394632239,1763796655634,-500.0,0.00016712,2]
[394632240,1763796655644,-500.0,0.00016712,2]
[394632241,1763796655654,-500.0,0.00016712,2]
[394632242,1763796655663,-500.0,0.00016712,2]
[394632243,1763796655673,-1164.88,0.00016712,2]
[394632244,1763796655683,-428.94567121,0.00016712,2]
[394632245,1763796655692,-540.87490177,0.00016712,2]
[394632246,1763796655702,-500.0,0.00016712,2]
[394632247,1763796655712,-500.0,0.00016712,2]
[394632248,1763796655721,-500.0,0.00016712,2]
[394632249,1763796655732,-500.0,0.00016712,2]
[394632250,1763796655742,-596.91,0.00016712,2]